[Event "Early-Titled-Tuesday-Blitz-November-28-2023"]
[Site "Chess.com"]
[Date "2023.11.28"]
[Round "9"]
[White "FontVella8"]
[Black "Atousa1"]
[Result "0-1"]
[WhiteElo "2581"]
[BlackElo "2472"]
[TimeControl "180+1"]
[EndTime "9:50:35 PST"]
[Termination "Atousa1 won by resignation"]

1. e4 {[%clk 0:03:00.1]} 1... c5 {[%clk 0:02:56]} 2. Nf3 {[%clk 0:02:59.4]} 2...
e6 {[%clk 0:02:53.4]} 3. d4 {[%clk 0:02:58.7]} 3... cxd4 {[%clk 0:02:53.5]} 4.
Nxd4 {[%clk 0:02:59.6]} 4... a6 {[%clk 0:02:52]} 5. Bd3 {[%clk 0:02:59]} 5...
Bc5 {[%clk 0:02:50.8]} 6. Nb3 {[%clk 0:02:58.6]} 6... Be7 {[%clk 0:02:48.4]} 7.
O-O {[%clk 0:02:59.1]} 7... d6 {[%clk 0:02:48.9]} 8. c4 {[%clk 0:02:59.2]} 8...
Nc6 {[%clk 0:02:49.3]} 9. Nc3 {[%clk 0:02:59.8]} 9... Nf6 {[%clk 0:02:49.7]} 10.
Qe2 {[%clk 0:03:00.3]} 10... O-O {[%clk 0:02:50]} 11. f4 {[%clk 0:03:00.7]}
11... Bd7 {[%clk 0:02:48.6]} 12. Kh1 {[%clk 0:03:00.6]} 12... Rc8 {[%clk
0:02:48.6]} 13. e5 {[%clk 0:02:59.4]} 13... Ne8 {[%clk 0:02:40.1]} 14. Bd2
{[%clk 0:02:36.3]} 14... Nb4 {[%clk 0:02:19.8]} 15. Rae1 {[%clk 0:02:14.4]}
15... Nxd3 {[%clk 0:02:10.2]} 16. Qxd3 {[%clk 0:02:14.5]} 16... Bc6 {[%clk
0:02:10.5]} 17. Nd4 {[%clk 0:01:49]} 17... dxe5 {[%clk 0:02:02.4]} 18. fxe5
{[%clk 0:01:47.6]} 18... Bg5 {[%clk 0:01:43.5]} 19. Bf4 {[%clk 0:01:40.9]} 19...
Bxf4 {[%clk 0:01:26.7]} 20. Rxf4 {[%clk 0:01:36.3]} 20... Qg5 {[%clk 0:01:26.7]}
21. Qd2 {[%clk 0:01:24.3]} 21... Bxg2+ {[%clk 0:01:22.6]} 22. Qxg2 {[%clk
0:00:42.5]} 22... Qxf4 {[%clk 0:01:22.6]} 23. Qxb7 {[%clk 0:00:43]} 23... Rxc4
{[%clk 0:01:12.9]} 24. Nf3 {[%clk 0:00:40.2]} 24... Nc7 {[%clk 0:01:08.1]} 25.
Ne2 {[%clk 0:00:16.8]} 25... Qe4 {[%clk 0:01:07.8]} 26. Qb3 {[%clk 0:00:10.8]}
26... Rb4 {[%clk 0:00:59.7]} 27. Qc3 {[%clk 0:00:08.6]} 27... Nd5 {[%clk
0:00:59.1]} 28. Ng3 {[%clk 0:00:03.2]} 28... Nxc3 {[%clk 0:00:57.6]} 0-1

[Event "Early-Titled-Tuesday-Blitz-November-28-2023"]
[Site "Chess.com"]
[Date "2023.11.28"]
[Round "9"]
[White "seopie"]
[Black "vishwa_vijeta"]
[Result "1-0"]
[WhiteElo "2874"]
[BlackElo "2577"]
[TimeControl "180+1"]
[EndTime "9:51:09 PST"]
[Termination "seopie won by resignation"]

1. d4 {[%clk 0:02:55.7]} 1... Nf6 {[%clk 0:02:55.5]} 2. c4 {[%clk 0:02:55.1]}
2... g6 {[%clk 0:02:54.8]} 3. Nc3 {[%clk 0:02:54.3]} 3... d5 {[%clk 0:02:54.5]}
4. Bg5 {[%clk 0:02:48.5]} 4... Ne4 {[%clk 0:02:53]} 5. Bf4 {[%clk 0:02:48.4]}
5... Nxc3 {[%clk 0:02:51.9]} 6. bxc3 {[%clk 0:02:48.8]} 6... Bg7 {[%clk
0:02:52.1]} 7. e3 {[%clk 0:02:49.1]} 7... c5 {[%clk 0:02:51.7]} 8. Nf3 {[%clk
0:02:46.6]} 8... O-O {[%clk 0:02:50.6]} 9. cxd5 {[%clk 0:02:37.7]} 9... Qxd5
{[%clk 0:02:49.1]} 10. Be2 {[%clk 0:02:38]} 10... Nc6 {[%clk 0:02:48.2]} 11. O-O
{[%clk 0:02:37.5]} 11... Rd8 {[%clk 0:02:30.9]} 12. Qb3 {[%clk 0:02:29.4]} 12...
Be6 {[%clk 0:02:20.6]} 13. Qa3 {[%clk 0:02:26.5]} 13... Bg4 {[%clk 0:02:08.7]}
14. h3 {[%clk 0:02:23.7]} 14... Bf5 {[%clk 0:02:04.9]} 15. Rfd1 {[%clk
0:02:18.1]} 15... cxd4 {[%clk 0:01:51.8]} 16. cxd4 {[%clk 0:02:16.6]} 16... Rac8
{[%clk 0:01:47.4]} 17. Rac1 {[%clk 0:02:01]} 17... Na5 {[%clk 0:01:22.7]} 18.
Rxc8 {[%clk 0:01:58.1]} 18... Rxc8 {[%clk 0:01:21.8]} 19. Ne5 {[%clk 0:01:47.6]}
19... Be6 {[%clk 0:01:13.1]} 20. Qxe7 {[%clk 0:01:34.1]} 20... Qxa2 {[%clk
0:01:09.4]} 21. Bf3 {[%clk 0:01:30.9]} 21... Nc6 {[%clk 0:00:42.4]} 22. Nxc6
{[%clk 0:01:24.4]} 22... bxc6 {[%clk 0:00:41.9]} 23. Qb7 {[%clk 0:01:14.4]}
23... Qb3 {[%clk 0:00:34.9]} 24. Qxa7 {[%clk 0:01:09.3]} 24... Bd5 {[%clk
0:00:33.6]} 25. Qa6 {[%clk 0:01:03.2]} 25... Rb8 {[%clk 0:00:26.5]} 26. Qd3
{[%clk 0:00:59.6]} 26... Bxf3 {[%clk 0:00:23.1]} 27. Qxb3 {[%clk 0:00:58.4]}
27... Rxb3 {[%clk 0:00:24]} 28. gxf3 {[%clk 0:00:58.8]} 28... Rc3 {[%clk
0:00:24.7]} 29. Kg2 {[%clk 0:00:58.3]} 29... Kf8 {[%clk 0:00:24.3]} 30. Ra1
{[%clk 0:00:57.8]} 30... Bf6 {[%clk 0:00:22.9]} 31. Bh6+ {[%clk 0:00:56.3]}
31... Ke7 {[%clk 0:00:22.6]} 32. Ra7+ {[%clk 0:00:56.3]} 32... Ke6 {[%clk
0:00:22.8]} 33. Bf4 {[%clk 0:00:53]} 33... c5 {[%clk 0:00:20.6]} 34. Ra6+ {[%clk
0:00:52.6]} 34... Kf5 {[%clk 0:00:19]} 35. Bg3 {[%clk 0:00:47.7]} 35... cxd4
{[%clk 0:00:18.2]} 36. e4+ {[%clk 0:00:47.9]} 36... Kg5 {[%clk 0:00:18.7]} 37.
f4+ {[%clk 0:00:47]} 37... Kh6 {[%clk 0:00:19.4]} 38. Rxf6 {[%clk 0:00:47]}
38... Kg7 {[%clk 0:00:20.1]} 39. Rd6 {[%clk 0:00:47.1]} 1-0

[Event "Early-Titled-Tuesday-Blitz-November-28-2023"]
[Site "Chess.com"]
[Date "2023.11.28"]
[Round "9"]
[White "vi_pranav"]
[Black "FoxOnTheRun97"]
[Result "1-0"]
[WhiteElo "3021"]
[BlackElo "2580"]
[TimeControl "180+1"]
[EndTime "9:51:10 PST"]
[Termination "vi_pranav won on time"]

1. Nf3 {[%clk 0:03:00.9]} 1... Nf6 {[%clk 0:02:59.8]} 2. g3 {[%clk 0:02:52.2]}
2... d5 {[%clk 0:02:59.9]} 3. Bg2 {[%clk 0:02:53.1]} 3... Bf5 {[%clk 0:02:59.8]}
4. O-O {[%clk 0:02:54]} 4... e6 {[%clk 0:03:00.1]} 5. d3 {[%clk 0:02:54.7]} 5...
h6 {[%clk 0:03:00]} 6. Nbd2 {[%clk 0:02:54.7]} 6... Nbd7 {[%clk 0:02:57.6]} 7.
b3 {[%clk 0:02:55.6]} 7... c6 {[%clk 0:02:55.9]} 8. Bb2 {[%clk 0:02:56.2]} 8...
Bc5 {[%clk 0:02:53]} 9. Qe1 {[%clk 0:02:56.6]} 9... Bh7 {[%clk 0:02:50.6]} 10.
e4 {[%clk 0:02:57]} 10... O-O {[%clk 0:02:45.8]} 11. Qe2 {[%clk 0:02:57.5]}
11... a5 {[%clk 0:02:42.8]} 12. a3 {[%clk 0:02:57]} 12... b5 {[%clk 0:02:35.7]}
13. h3 {[%clk 0:02:54.7]} 13... Qc7 {[%clk 0:02:18.1]} 14. Kh2 {[%clk
0:02:53.6]} 14... Be7 {[%clk 0:02:09.2]} 15. Nd4 {[%clk 0:02:48.5]} 15... Rab8
{[%clk 0:02:03.5]} 16. f4 {[%clk 0:02:46.9]} 16... c5 {[%clk 0:02:00.4]} 17.
N4f3 {[%clk 0:02:46.5]} 17... c4 {[%clk 0:01:55.8]} 18. Bxf6 {[%clk 0:02:08.4]}
18... Bxf6 {[%clk 0:01:54.3]} 19. e5 {[%clk 0:02:08.4]} 19... Be7 {[%clk
0:01:53.1]} 20. dxc4 {[%clk 0:02:08.5]} 20... bxc4 {[%clk 0:01:45.6]} 21. bxc4
{[%clk 0:02:07.9]} 21... dxc4 {[%clk 0:01:45.5]} 22. Nxc4 {[%clk 0:02:04.6]}
22... Rfc8 {[%clk 0:01:42.4]} 23. Ne3 {[%clk 0:02:05.1]} 23... Qc3 {[%clk
0:01:35.5]} 24. f5 {[%clk 0:01:59.3]} 24... Nxe5 {[%clk 0:01:27.2]} 25. fxe6
{[%clk 0:01:58.4]} 25... fxe6 {[%clk 0:01:23.3]} 26. Rae1 {[%clk 0:01:51.2]}
26... Bf6 {[%clk 0:01:19.1]} 27. Nxe5 {[%clk 0:01:48.1]} 27... Bxe5 {[%clk
0:01:15.8]} 28. Qg4 {[%clk 0:01:35.9]} 28... Re8 {[%clk 0:01:08.1]} 29. Be4
{[%clk 0:01:27.2]} 29... Bxe4 {[%clk 0:01:03.8]} 30. Qxe4 {[%clk 0:01:28.1]}
30... Rbd8 {[%clk 0:00:49.4]} 31. Re2 {[%clk 0:01:22.2]} 31... Rd2 {[%clk
0:00:44.2]} 32. Rff2 {[%clk 0:01:22.3]} 32... Rxe2 {[%clk 0:00:43.9]} 33. Rxe2
{[%clk 0:01:23.2]} 33... Bb8 {[%clk 0:00:29]} 34. Qg6 {[%clk 0:01:14.5]} 34...
Qc6 {[%clk 0:00:20.5]} 35. Nf5 {[%clk 0:01:14.4]} 35... Bxg3+ {[%clk 0:00:12]}
36. Nxg3 {[%clk 0:01:13]} 36... Re7 {[%clk 0:00:07.3]} 37. Rd2 {[%clk
0:01:11.1]} 37... Qc7 {[%clk 0:00:05.8]} 38. Kg2 {[%clk 0:01:10.5]} 38... Qb7+
{[%clk 0:00:05.9]} 39. Qe4 {[%clk 0:01:10.5]} 39... Qc7 {[%clk 0:00:06]} 40. a4
{[%clk 0:01:06.9]} 40... Re8 {[%clk 0:00:03.3]} 41. Ne2 {[%clk 0:01:04.9]} 1-0

[Event "Early-Titled-Tuesday-Blitz-November-28-2023"]
[Site "Chess.com"]
[Date "2023.11.28"]
[Round "9"]
[White "Msb2"]
[Black "Elsa167"]
[Result "1-0"]
[WhiteElo "3051"]
[BlackElo "2911"]
[TimeControl "180+1"]
[EndTime "9:51:14 PST"]
[Termination "Msb2 won by checkmate"]

1. d4 {[%clk 0:03:00.9]} 1... Nf6 {[%clk 0:02:58.8]} 2. c4 {[%clk 0:03:01.3]}
2... e6 {[%clk 0:02:59]} 3. Nc3 {[%clk 0:03:01.7]} 3... d5 {[%clk 0:02:58.6]} 4.
cxd5 {[%clk 0:03:02.6]} 4... exd5 {[%clk 0:02:59.4]} 5. Bg5 {[%clk 0:03:02.5]}
5... Be7 {[%clk 0:02:59.9]} 6. e3 {[%clk 0:03:03]} 6... O-O {[%clk 0:02:59.7]}
7. Bd3 {[%clk 0:03:03.7]} 7... Re8 {[%clk 0:02:59.8]} 8. Nf3 {[%clk 0:03:00.5]}
8... c6 {[%clk 0:02:52.9]} 9. Qc2 {[%clk 0:02:57.2]} 9... h6 {[%clk 0:02:49.3]}
10. Bf4 {[%clk 0:02:56.7]} 10... a5 {[%clk 0:02:41]} 11. h3 {[%clk 0:02:55.5]}
11... Na6 {[%clk 0:02:41.2]} 12. a3 {[%clk 0:02:55.7]} 12... Nc7 {[%clk
0:02:35.6]} 13. O-O {[%clk 0:02:53.4]} 13... Ne6 {[%clk 0:02:33.9]} 14. Bh2
{[%clk 0:02:52.4]} 14... Bd6 {[%clk 0:02:30.9]} 15. Ne5 {[%clk 0:02:53]} 15...
Qe7 {[%clk 0:02:16.4]} 16. f4 {[%clk 0:02:49.3]} 16... Bd7 {[%clk 0:02:01.2]}
17. Kh1 {[%clk 0:02:42.2]} 17... c5 {[%clk 0:01:58.2]} 18. Qf2 {[%clk
0:02:26.2]} 18... c4 {[%clk 0:01:50.8]} 19. Bc2 {[%clk 0:02:24.7]} 19... b5
{[%clk 0:01:51.3]} 20. Qf3 {[%clk 0:02:15]} 20... Nc7 {[%clk 0:01:47.6]} 21. Ne2
{[%clk 0:02:03.4]} 21... b4 {[%clk 0:01:43.8]} 22. axb4 {[%clk 0:02:02.5]} 22...
axb4 {[%clk 0:01:43.8]} 23. Ng3 {[%clk 0:02:03.3]} 23... b3 {[%clk 0:01:37.7]}
24. Nf5 {[%clk 0:01:58.7]} 24... Bxf5 {[%clk 0:01:34.6]} 25. Bxf5 {[%clk
0:01:59.6]} 25... Ra2 {[%clk 0:01:19.6]} 26. Rxa2 {[%clk 0:01:41.3]} 26... bxa2
{[%clk 0:01:19.3]} 27. Ra1 {[%clk 0:01:42.2]} 27... Ra8 {[%clk 0:01:18.6]} 28.
Bg3 {[%clk 0:01:42.8]} 28... Nb5 {[%clk 0:01:05.6]} 29. Nxc4 {[%clk 0:01:38.7]}
29... Ne4 {[%clk 0:00:50.8]} 30. Bxe4 {[%clk 0:01:36.4]} 30... dxe4 {[%clk
0:00:51.2]} 31. Qe2 {[%clk 0:01:35.9]} 31... Bc7 {[%clk 0:00:44.9]} 32. Qc2
{[%clk 0:01:32.6]} 32... Qb4 {[%clk 0:00:44.5]} 33. Be1 {[%clk 0:01:28.6]} 33...
Qa4 {[%clk 0:00:36.9]} 34. b3 {[%clk 0:01:28]} 34... Qa6 {[%clk 0:00:36.9]} 35.
Qxe4 {[%clk 0:01:20.5]} 35... Nd6 {[%clk 0:00:31.8]} 36. Qc2 {[%clk 0:01:20.7]}
36... g5 {[%clk 0:00:15.3]} 37. fxg5 {[%clk 0:01:18.8]} 37... hxg5 {[%clk
0:00:15.3]} 38. Bf2 {[%clk 0:01:07.3]} 38... f5 {[%clk 0:00:10.7]} 39. Ne5
{[%clk 0:01:03]} 39... Qb7 {[%clk 0:00:04.5]} 40. Kg1 {[%clk 0:00:55.2]} 40...
Ne4 {[%clk 0:00:03.8]} 41. Qc4+ {[%clk 0:00:55.3]} 41... Kh8 {[%clk 0:00:03.4]}
42. Qf7 {[%clk 0:00:55.2]} 42... Qxb3 {[%clk 0:00:01.5]} 43. Ng6# {[%clk
0:00:55.2]} 1-0

[Event "Early-Titled-Tuesday-Blitz-November-28-2023"]
[Site "Chess.com"]
[Date "2023.11.28"]
[Round "9"]
[White "ViktoriyaTarasova"]
[Black "NowInChess"]
[Result "1-0"]
[WhiteElo "2362"]
[BlackElo "2185"]
[TimeControl "180+1"]
[EndTime "9:51:20 PST"]
[Termination "ViktoriyaTarasova won by checkmate"]

1. d4 {[%clk 0:03:00.9]} 1... Nf6 {[%clk 0:02:59.4]} 2. c4 {[%clk 0:03:00.9]}
2... c5 {[%clk 0:02:59.7]} 3. d5 {[%clk 0:03:00.5]} 3... b5 {[%clk 0:03:00.1]}
4. cxb5 {[%clk 0:03:00.8]} 4... a6 {[%clk 0:03:00.5]} 5. bxa6 {[%clk 0:03:00.9]}
5... g6 {[%clk 0:03:00.7]} 6. Nc3 {[%clk 0:03:01.3]} 6... Bg7 {[%clk 0:03:01]}
7. Nf3 {[%clk 0:03:01.9]} 7... O-O {[%clk 0:03:01.1]} 8. e4 {[%clk 0:03:02.7]}
8... Qa5 {[%clk 0:03:01.1]} 9. Bd2 {[%clk 0:02:57.8]} 9... Bxa6 {[%clk
0:02:58.2]} 10. Be2 {[%clk 0:02:51.8]} 10... e6 {[%clk 0:02:50.3]} 11. O-O
{[%clk 0:02:46.7]} 11... Bxe2 {[%clk 0:02:42.1]} 12. Qxe2 {[%clk 0:02:45.7]}
12... Qa6 {[%clk 0:02:37.7]} 13. Qxa6 {[%clk 0:02:21.1]} 13... Nxa6 {[%clk
0:02:37.4]} 14. dxe6 {[%clk 0:02:21.7]} 14... fxe6 {[%clk 0:02:36.4]} 15. e5
{[%clk 0:02:15.3]} 15... Nd5 {[%clk 0:02:33.5]} 16. Nxd5 {[%clk 0:02:12.2]}
16... exd5 {[%clk 0:02:34.4]} 17. Rac1 {[%clk 0:01:49.1]} 17... c4 {[%clk
0:01:43.8]} 18. b3 {[%clk 0:01:31.3]} 18... Rac8 {[%clk 0:01:41.5]} 19. h3
{[%clk 0:00:57.3]} 19... Rfe8 {[%clk 0:01:40.9]} 20. Bc3 {[%clk 0:00:44.9]}
20... Nc5 {[%clk 0:01:39.3]} 21. bxc4 {[%clk 0:00:35.7]} 21... dxc4 {[%clk
0:01:33.8]} 22. Rc2 {[%clk 0:00:17.4]} 22... Nd3 {[%clk 0:01:31.1]} 23. Rd1
{[%clk 0:00:16.6]} 23... Rc7 {[%clk 0:01:18.1]} 24. Re2 {[%clk 0:00:16]} 24...
Ra7 {[%clk 0:01:14.7]} 25. Kh2 {[%clk 0:00:16]} 25... Nf4 {[%clk 0:01:12.9]} 26.
Re4 {[%clk 0:00:15.4]} 26... Nd3 {[%clk 0:01:12.4]} 27. Rxc4 {[%clk 0:00:15.5]}
27... Nxf2 {[%clk 0:01:12.2]} 28. Rd5 {[%clk 0:00:13.8]} 28... Rxa2 {[%clk
0:01:09.2]} 29. Rxd7 {[%clk 0:00:13.1]} 29... Re2 {[%clk 0:01:01.5]} 30. Rcc7
{[%clk 0:00:11.8]} 30... Bh6 {[%clk 0:00:58.9]} 31. Kg3 {[%clk 0:00:08.7]} 31...
Ne4+ {[%clk 0:00:58]} 32. Kh4 {[%clk 0:00:08.2]} 32... Nxc3 {[%clk 0:00:56.3]}
33. Rxc3 {[%clk 0:00:06.6]} 33... Bf4 {[%clk 0:00:55.5]} 34. Rcc7 {[%clk
0:00:04.9]} 34... Bxe5 {[%clk 0:00:55.4]} 35. Nxe5 {[%clk 0:00:04.5]} 35...
R2xe5 {[%clk 0:00:55.9]} 36. Rg7+ {[%clk 0:00:05.2]} 36... Kh8 {[%clk
0:00:55.8]} 37. Rxh7+ {[%clk 0:00:05.5]} 37... Kg8 {[%clk 0:00:56.5]} 38. Rcg7+
{[%clk 0:00:05.7]} 38... Kf8 {[%clk 0:00:56.8]} 39. Rxg6 {[%clk 0:00:06]} 39...
Re4+ {[%clk 0:00:56]} 40. g4 {[%clk 0:00:06.6]} 40... Rf4 {[%clk 0:00:48.3]} 41.
Rgg7 {[%clk 0:00:06.8]} 41... Re3 {[%clk 0:00:45.2]} 42. Ra7 {[%clk 0:00:06.7]}
42... Rff3 {[%clk 0:00:44.8]} 43. Rh8# {[%clk 0:00:06.9]} 1-0

[Event "Early-Titled-Tuesday-Blitz-November-28-2023"]
[Site "Chess.com"]
[Date "2023.11.28"]
[Round "9"]
[White "Sofia_Blokhin"]
[Black "MeesvanOsch"]
[Result "0-1"]
[WhiteElo "2274"]
[BlackElo "2412"]
[TimeControl "180+1"]
[EndTime "9:51:23 PST"]
[Termination "MeesvanOsch won on time"]

1. d4 {[%clk 0:03:00.9]} 1... Nf6 {[%clk 0:02:56.8]} 2. c4 {[%clk 0:02:59.1]}
2... c5 {[%clk 0:02:57.4]} 3. d5 {[%clk 0:02:58.4]} 3... b5 {[%clk 0:02:57.9]}
4. cxb5 {[%clk 0:02:58.3]} 4... a6 {[%clk 0:02:56.7]} 5. Nc3 {[%clk 0:02:56.3]}
5... axb5 {[%clk 0:02:53.8]} 6. e4 {[%clk 0:02:44.8]} 6... b4 {[%clk 0:02:52.4]}
7. e5 {[%clk 0:02:44.9]} 7... bxc3 {[%clk 0:02:52.4]} 8. exf6 {[%clk 0:02:44.7]}
8... cxb2 {[%clk 0:02:50.1]} 9. Bxb2 {[%clk 0:02:43.1]} 9... Qa5+ {[%clk
0:02:41.1]} 10. Qd2 {[%clk 0:02:35.8]} 10... Qxd2+ {[%clk 0:02:40.4]} 11. Kxd2
{[%clk 0:02:36.7]} 11... gxf6 {[%clk 0:02:41]} 12. Nf3 {[%clk 0:02:25.4]} 12...
Bh6+ {[%clk 0:02:37]} 13. Ke1 {[%clk 0:02:23.2]} 13... d6 {[%clk 0:02:34.9]} 14.
Bd3 {[%clk 0:02:13.1]} 14... Ba6 {[%clk 0:02:28.2]} 15. Bf5 {[%clk 0:02:02.5]}
15... Bc4 {[%clk 0:02:21.1]} 16. Be4 {[%clk 0:01:41.5]} 16... Rxa2 {[%clk
0:02:19.9]} 17. Rxa2 {[%clk 0:01:40.3]} 17... Bxa2 {[%clk 0:02:20.8]} 18. Ke2
{[%clk 0:01:38.4]} 18... Bc4+ {[%clk 0:02:17.8]} 19. Kd1 {[%clk 0:01:33.6]}
19... Kd7 {[%clk 0:02:09.4]} 20. Kc2 {[%clk 0:01:32]} 20... Na6 {[%clk
0:02:06.1]} 21. Ra1 {[%clk 0:01:26]} 21... Nb4+ {[%clk 0:01:50.9]} 22. Kd1
{[%clk 0:01:17.3]} 22... Bxd5 {[%clk 0:01:46]} 23. Bf5+ {[%clk 0:00:49.1]} 23...
e6 {[%clk 0:01:43.4]} 24. Ra7+ {[%clk 0:00:46.2]} 24... Kc6 {[%clk 0:01:42.6]}
25. Bxf6 {[%clk 0:00:35.7]} 25... Rg8 {[%clk 0:01:31.3]} 26. Bxh7 {[%clk
0:00:08.7]} 26... Rxg2 {[%clk 0:01:29.1]} 27. Ke2 {[%clk 0:00:08.7]} 27... Bc4+
{[%clk 0:01:22.8]} 28. Ke1 {[%clk 0:00:06.7]} 28... Nd3+ {[%clk 0:00:55.7]} 29.
Bxd3 {[%clk 0:00:05.8]} 29... Bxd3 {[%clk 0:00:56.6]} 30. Rxf7 {[%clk
0:00:05.8]} 30... Be4 {[%clk 0:00:50.4]} 31. Bh4 {[%clk 0:00:02.7]} 31... Bxf3
{[%clk 0:00:47.1]} 32. Rxf3 {[%clk 0:00:03.6]} 32... Rxh2 {[%clk 0:00:47.2]} 33.
Bg3 {[%clk 0:00:03.2]} 33... Rh5 {[%clk 0:00:46.2]} 34. Ra3 {[%clk 0:00:02.2]}
34... e5 {[%clk 0:00:35.5]} 35. Ra6+ {[%clk 0:00:02.5]} 35... Kd5 {[%clk
0:00:35.7]} 36. Ke2 {[%clk 0:00:02]} 36... Bf4 {[%clk 0:00:34.5]} 0-1

[Event "Early-Titled-Tuesday-Blitz-November-28-2023"]
[Site "Chess.com"]
[Date "2023.11.28"]
[Round "9"]
[White "Sconko"]
[Black "Kostukov_Alex"]
[Result "1-0"]
[WhiteElo "2301"]
[BlackElo "2393"]
[TimeControl "180+1"]
[EndTime "9:51:26 PST"]
[Termination "Sconko won by resignation"]

1. e4 {[%clk 0:02:38.8]} 1... c5 {[%clk 0:02:59.3]} 2. Nc3 {[%clk 0:02:34]} 2...
g6 {[%clk 0:02:58.9]} 3. d4 {[%clk 0:02:32.4]} 3... cxd4 {[%clk 0:02:57.6]} 4.
Qxd4 {[%clk 0:02:33.3]} 4... Nf6 {[%clk 0:02:57.7]} 5. Nf3 {[%clk 0:02:31.9]}
5... Nc6 {[%clk 0:02:57.7]} 6. Qa4 {[%clk 0:02:30.4]} 6... d6 {[%clk 0:02:57.2]}
7. e5 {[%clk 0:02:28.4]} 7... dxe5 {[%clk 0:02:57.3]} 8. Nxe5 {[%clk 0:02:29.3]}
8... Bg7 {[%clk 0:02:57.6]} 9. Bb5 {[%clk 0:02:28]} 9... O-O {[%clk 0:02:54.8]}
10. Nxc6 {[%clk 0:02:28]} 10... bxc6 {[%clk 0:02:54.7]} 11. Bxc6 {[%clk
0:02:28.9]} 11... Rb8 {[%clk 0:02:24.5]} 12. O-O {[%clk 0:02:26.1]} 12... Bf5
{[%clk 0:02:21.6]} 13. Qxa7 {[%clk 0:02:00.3]} 13... Bxc2 {[%clk 0:02:12.7]} 14.
Qa3 {[%clk 0:01:43.6]} 14... Ng4 {[%clk 0:01:53.9]} 15. Bf4 {[%clk 0:01:34.7]}
15... e5 {[%clk 0:01:47.8]} 16. Bg3 {[%clk 0:01:32.8]} 16... Qb6 {[%clk
0:01:47.7]} 17. Nd5 {[%clk 0:01:11.8]} 17... Qxb2 {[%clk 0:01:40.1]} 18. Qxb2
{[%clk 0:01:12.3]} 18... Rxb2 {[%clk 0:01:39.4]} 19. a4 {[%clk 0:01:11.3]} 19...
e4 {[%clk 0:01:25.1]} 20. a5 {[%clk 0:01:05.2]} 20... Bd3 {[%clk 0:01:19.8]} 21.
Rfc1 {[%clk 0:00:52.3]} 21... Bd4 {[%clk 0:01:16]} 22. a6 {[%clk 0:00:40.3]}
22... Nxf2 {[%clk 0:01:12.1]} 23. a7 {[%clk 0:00:34.3]} 23... Ng4+ {[%clk
0:00:50.8]} 24. Kh1 {[%clk 0:00:32.3]} 24... Bxa7 {[%clk 0:00:42.4]} 25. Rxa7
{[%clk 0:00:32]} 25... e3 {[%clk 0:00:34.1]} 26. h3 {[%clk 0:00:30.8]} 26...
Nf2+ {[%clk 0:00:33.7]} 27. Kh2 {[%clk 0:00:27.3]} 27... Rd2 {[%clk 0:00:32.3]}
28. Nxe3 {[%clk 0:00:24.7]} 28... Ne4 {[%clk 0:00:31.6]} 29. Be5 {[%clk
0:00:19.2]} 29... Re2 {[%clk 0:00:11.1]} 30. Ng4 {[%clk 0:00:17.9]} 30... f5
{[%clk 0:00:08.8]} 31. Bd5+ {[%clk 0:00:17.5]} 1-0

[Event "Early-Titled-Tuesday-Blitz-November-28-2023"]
[Site "Chess.com"]
[Date "2023.11.28"]
[Round "9"]
[White "Vesper2018"]
[Black "OneTrickPony_82"]
[Result "1-0"]
[WhiteElo "2606"]
[BlackElo "2445"]
[TimeControl "180+1"]
[EndTime "9:51:28 PST"]
[Termination "Vesper2018 won on time"]

1. e4 {[%clk 0:03:00.9]} 1... e5 {[%clk 0:03:00]} 2. Nf3 {[%clk 0:03:00.7]} 2...
Nc6 {[%clk 0:03:00.6]} 3. Bb5 {[%clk 0:03:00.3]} 3... a6 {[%clk 0:03:01.1]} 4.
Ba4 {[%clk 0:03:00.4]} 4... Nf6 {[%clk 0:03:01.6]} 5. O-O {[%clk 0:03:00.1]}
5... Be7 {[%clk 0:03:02.2]} 6. Re1 {[%clk 0:03:00.2]} 6... b5 {[%clk 0:03:02.7]}
7. Bb3 {[%clk 0:02:58.8]} 7... O-O {[%clk 0:03:02.9]} 8. c3 {[%clk 0:02:54.9]}
8... d5 {[%clk 0:03:02.6]} 9. d4 {[%clk 0:02:52.6]} 9... dxe4 {[%clk 0:03:00.3]}
10. Nxe5 {[%clk 0:02:50.9]} 10... Nxe5 {[%clk 0:02:59.8]} 11. dxe5 {[%clk
0:02:50.7]} 11... Qxd1 {[%clk 0:02:59.8]} 12. Bxd1 {[%clk 0:02:49.2]} 12... Nd7
{[%clk 0:02:06.6]} 13. Bc2 {[%clk 0:02:39]} 13... Nc5 {[%clk 0:01:54.8]} 14.
Bxe4 {[%clk 0:02:38]} 14... Nxe4 {[%clk 0:01:52.6]} 15. Rxe4 {[%clk 0:02:37.6]}
15... Rd8 {[%clk 0:01:45.9]} 16. Re1 {[%clk 0:02:34.7]} 16... Bf5 {[%clk
0:01:41.3]} 17. Nd2 {[%clk 0:02:31.6]} 17... Rd3 {[%clk 0:01:40.5]} 18. Nb3
{[%clk 0:02:26.1]} 18... Rad8 {[%clk 0:01:38.7]} 19. Be3 {[%clk 0:02:23.1]}
19... h5 {[%clk 0:01:34.4]} 20. Nd4 {[%clk 0:02:10.6]} 20... Be4 {[%clk
0:01:25.9]} 21. f3 {[%clk 0:02:01.9]} 21... Bb7 {[%clk 0:01:24.5]} 22. a4 {[%clk
0:01:53.5]} 22... c5 {[%clk 0:01:17.2]} 23. Nf5 {[%clk 0:01:53]} 23... Bf8
{[%clk 0:01:17.8]} 24. axb5 {[%clk 0:01:52.4]} 24... axb5 {[%clk 0:01:17.9]} 25.
Ra7 {[%clk 0:01:52.1]} 25... R8d7 {[%clk 0:01:04]} 26. Bg5 {[%clk 0:01:32.8]}
26... c4 {[%clk 0:01:00.8]} 27. Be3 {[%clk 0:01:28.4]} 27... g6 {[%clk
0:00:40.1]} 28. Nd4 {[%clk 0:01:28.2]} 28... Bc5 {[%clk 0:00:36.7]} 29. Ra5
{[%clk 0:01:27.7]} 29... Bc6 {[%clk 0:00:20.9]} 30. Kf1 {[%clk 0:01:18]} 30...
Bxd4 {[%clk 0:00:06.5]} 31. Bxd4 {[%clk 0:01:16]} 31... Rd2 {[%clk 0:00:06.4]}
32. e6 {[%clk 0:01:13.2]} 32... fxe6 {[%clk 0:00:04.5]} 33. Rxe6 {[%clk
0:01:13.2]} 33... Bd5 {[%clk 0:00:01.7]} 34. Rxg6+ {[%clk 0:01:13.4]} 34... Kh7
{[%clk 0:00:02]} 35. Rg5 {[%clk 0:01:08.9]} 35... b4 {[%clk 0:00:02.1]} 36.
Raxd5 {[%clk 0:01:06.4]} 36... Rxd5 {[%clk 0:00:02.2]} 37. Rxd5 {[%clk
0:01:06.4]} 37... b3 {[%clk 0:00:03.1]} 38. Rxh5+ {[%clk 0:00:44.8]} 38... Kg6
{[%clk 0:00:02.6]} 39. Rc5 {[%clk 0:00:45]} 39... Rxb2 {[%clk 0:00:02.9]} 40.
Rxc4 {[%clk 0:00:44.9]} 40... Rc2 {[%clk 0:00:03.5]} 41. Rc6+ {[%clk 0:00:41.8]}
41... Kf5 {[%clk 0:00:03]} 42. c4 {[%clk 0:00:42.3]} 1-0